[Event "Live Chess"]
[Site "Chess.com"]
[Date "2024.06.01"]
[Round "-"]
[White "CCGoodKnightRookie"]
[Black "upoe610"]
[Result "0-1"]
[WhiteElo "2325"]
[BlackElo "2206"]
[TimeControl "300"]
[EndTime "15:38:26 PDT"]
[Termination "upoe610 won by resignation"]

1. d4 {[%clk 0:04:58.2]} 1... Nf6 {[%clk 0:04:58.4]} 2. Nc3 {[%clk 0:04:56.8]}
2... d5 {[%clk 0:04:56]} 3. Bf4 {[%clk 0:04:56.4]} 3... e6 {[%clk 0:04:55]} 4.
Nb5 {[%clk 0:04:55.2]} 4... Bb4+ {[%clk 0:04:50.5]} 5. c3 {[%clk 0:04:53.9]}
5... Ba5 {[%clk 0:04:49.7]} 6. a4 {[%clk 0:04:53.5]} 6... a6 {[%clk 0:04:48.4]}
7. b4 {[%clk 0:04:51.8]} 7... axb5 {[%clk 0:04:47.7]} 8. axb5 {[%clk 0:04:50.6]}
8... Nh5 {[%clk 0:04:35]} 9. Bd2 {[%clk 0:04:43.4]} 9... c6 {[%clk 0:04:31.2]}
10. e3 {[%clk 0:04:37.4]} 10... cxb5 {[%clk 0:04:25.5]} 11. Bxb5+ {[%clk
0:04:31]} 11... Bd7 {[%clk 0:04:24.3]} 12. Bxd7+ {[%clk 0:04:28.6]} 12... Nxd7
{[%clk 0:04:24.2]} 13. Rxa5 {[%clk 0:04:25.9]} 13... Rxa5 {[%clk 0:04:22.5]} 14.
bxa5 {[%clk 0:04:25.8]} 14... Nhf6 {[%clk 0:04:22.1]} 15. Qa4 {[%clk 0:04:17.7]}
15... O-O {[%clk 0:04:19.1]} 16. Nf3 {[%clk 0:04:14.8]} 16... Qc7 {[%clk
0:04:17.7]} 17. O-O {[%clk 0:04:13.1]} 17... Ra8 {[%clk 0:04:16.1]} 18. Rb1
{[%clk 0:04:04.9]} 18... Rxa5 {[%clk 0:04:12.3]} 19. Rxb7 {[%clk 0:04:03]} 19...
Rxa4 {[%clk 0:04:09.8]} 20. Rxc7 {[%clk 0:04:01.3]} 20... Ra1+ {[%clk
0:04:08.4]} 21. Be1 {[%clk 0:04:00.8]} 21... Kf8 {[%clk 0:04:05.6]} 22. Kf1
{[%clk 0:03:57.4]} 22... Ke7 {[%clk 0:04:04.7]} 23. Ke2 {[%clk 0:03:55.2]} 23...
Ra2+ {[%clk 0:04:03.5]} 24. Bd2 {[%clk 0:03:53.3]} 24... Ne4 {[%clk 0:04:02.6]}
25. c4 {[%clk 0:03:39.8]} 25... Kd6 {[%clk 0:03:58.7]} 26. Rb7 {[%clk
0:03:37.8]} 26... dxc4 {[%clk 0:03:57.8]} 27. Rxd7+ {[%clk 0:03:28.2]} 27...
Kxd7 {[%clk 0:03:56.4]} 28. Ne5+ {[%clk 0:03:28.1]} 28... Kd6 {[%clk 0:03:52.1]}
29. Nxc4+ {[%clk 0:03:28]} 29... Kd5 {[%clk 0:03:50.4]} 30. Nb6+ {[%clk
0:03:25.7]} 30... Kc6 {[%clk 0:03:49.4]} 31. Nc4 {[%clk 0:03:25.1]} 31... Kb5
{[%clk 0:03:48.7]} 32. f3 {[%clk 0:03:16]} 32... Kxc4 {[%clk 0:03:45.1]} 33.
fxe4 {[%clk 0:03:13.8]} 33... e5 {[%clk 0:03:36.7]} 34. dxe5 {[%clk 0:03:11.9]}
34... Kc5 {[%clk 0:03:32.1]} 35. Kd3 {[%clk 0:03:10.2]} 35... Ra3+ {[%clk
0:03:31.2]} 36. Bc3 {[%clk 0:03:08.2]} 36... Ra2 {[%clk 0:03:30.6]} 37. Bd2
{[%clk 0:03:06.8]} 37... Ra8 {[%clk 0:03:26.6]} 38. Bc3 {[%clk 0:03:05.4]} 38...
Rd8+ {[%clk 0:03:25.4]} 39. Bd4+ {[%clk 0:03:05]} 39... Kb4 {[%clk 0:03:24.5]}
40. Ke2 {[%clk 0:03:03.2]} 40... Kc4 {[%clk 0:03:23.7]} 41. e6 {[%clk
0:02:48.4]} 41... fxe6 {[%clk 0:03:20.6]} 42. Kf3 {[%clk 0:02:41.1]} 42... g6
{[%clk 0:03:12.4]} 43. Kf4 {[%clk 0:02:35.5]} 43... h6 {[%clk 0:03:09.9]} 44.
Ke5 {[%clk 0:02:34.1]} 44... Rf8 {[%clk 0:03:01.9]} 45. Kxe6 {[%clk 0:02:30.8]}
45... Rf2 {[%clk 0:03:00.7]} 46. g4 {[%clk 0:02:18.6]} 46... Rxh2 {[%clk
0:02:58.7]} 47. Kf6 {[%clk 0:02:14.2]} 47... h5 {[%clk 0:02:57.3]} 48. gxh5
{[%clk 0:02:04.6]} 48... gxh5 {[%clk 0:02:57.2]} 49. e5 {[%clk 0:02:01.6]} 49...
Kd5 {[%clk 0:02:55.7]} 50. Kg5 {[%clk 0:01:58.2]} 50... Ke6 {[%clk 0:02:53.4]}
51. Bc3 {[%clk 0:01:53.6]} 51... h4 {[%clk 0:02:51.1]} 52. Kg4 {[%clk
0:01:52.7]} 52... h3 {[%clk 0:02:50]} 53. Kg3 {[%clk 0:01:33.8]} 53... Rc2
{[%clk 0:02:48.6]} 0-1

[Event "Live Chess"]
[Site "Chess.com"]
[Date "2024.06.01"]
[Round "-"]
[White "defenderalist"]
[Black "degringolade64"]
[Result "0-1"]
[WhiteElo "1531"]
[BlackElo "2129"]
[TimeControl "300"]
[EndTime "15:38:32 PDT"]
[Termination "degringolade64 won by resignation"]

1. e4 {[%clk 0:04:52.6]} 1... d5 {[%clk 0:04:59.9]} 2. exd5 {[%clk 0:04:51.4]}
2... Qxd5 {[%clk 0:04:59]} 3. Nc3 {[%clk 0:04:51.3]} 3... Qd8 {[%clk 0:04:57.6]}
4. Nf3 {[%clk 0:04:50.9]} 4... Nf6 {[%clk 0:04:55.1]} 5. Bc4 {[%clk 0:04:50.2]}
5... e6 {[%clk 0:04:52.3]} 6. O-O {[%clk 0:04:49.3]} 6... Be7 {[%clk 0:04:49.3]}
7. d4 {[%clk 0:04:48.7]} 7... a6 {[%clk 0:04:46.9]} 8. Bf4 {[%clk 0:04:43.8]}
8... O-O {[%clk 0:04:44.4]} 9. Bd3 {[%clk 0:04:40.6]} 9... Nbd7 {[%clk
0:04:40.5]} 10. Ne5 {[%clk 0:04:36.6]} 10... c5 {[%clk 0:04:35]} 11. Nxd7 {[%clk
0:04:33.9]} 11... Qxd7 {[%clk 0:04:28.6]} 12. dxc5 {[%clk 0:04:31.5]} 12... Bxc5
{[%clk 0:04:27]} 13. Bg5 {[%clk 0:04:10.6]} 13... Be7 {[%clk 0:04:24.4]} 14.
Bxf6 {[%clk 0:04:02.2]} 14... Bxf6 {[%clk 0:04:22.9]} 15. Qh5 {[%clk 0:04:00.3]}
15... g6 {[%clk 0:04:21]} 16. Qh3 {[%clk 0:03:55.4]} 16... Bg7 {[%clk
0:04:07.2]} 17. Rad1 {[%clk 0:03:53.6]} 17... e5 {[%clk 0:04:01.8]} 18. Qe3
{[%clk 0:03:36.3]} 18... Qe6 {[%clk 0:03:53.9]} 19. b3 {[%clk 0:03:24.5]} 19...
b5 {[%clk 0:03:51.2]} 20. Ne4 {[%clk 0:03:22.3]} 20... Qe7 {[%clk 0:03:34.1]}
21. Rfe1 {[%clk 0:03:10.5]} 21... Re8 {[%clk 0:03:24.4]} 22. Bf1 {[%clk
0:02:59.1]} 22... Be6 {[%clk 0:03:18]} 23. Nd6 {[%clk 0:02:56.3]} 23... Red8
{[%clk 0:03:16.4]} 24. Ne4 {[%clk 0:02:38.4]} 24... Rac8 {[%clk 0:03:09.9]} 25.
c4 {[%clk 0:02:32]} 25... bxc4 {[%clk 0:03:07.2]} 26. bxc4 {[%clk 0:02:29.7]}
26... Rxd1 {[%clk 0:03:05.9]} 27. Rxd1 {[%clk 0:02:26.5]} 27... Bxc4 {[%clk
0:02:59.4]} 28. Bxc4 {[%clk 0:02:23.1]} 28... Rxc4 {[%clk 0:02:57.5]} 29. Nd6
{[%clk 0:02:19.1]} 29... Rc6 {[%clk 0:02:47.7]} 30. Ne4 {[%clk 0:01:54.7]} 30...
h6 {[%clk 0:02:40.5]} 31. f4 {[%clk 0:01:50.3]} 31... exf4 {[%clk 0:02:32.8]}
32. Qxf4 {[%clk 0:01:50.2]} 32... Re6 {[%clk 0:02:25.5]} 33. Re1 {[%clk
0:01:42.9]} 33... f5 {[%clk 0:02:16.8]} 34. Ng3 {[%clk 0:01:31.6]} 34... Rxe1+
{[%clk 0:02:14.6]} 0-1

[Event "Live Chess"]
[Site "Chess.com"]
[Date "2024.06.01"]
[Round "-"]
[White "MagnersCarlsberg2870"]
[Black "MellowAesthetic"]
[Result "0-1"]
[WhiteElo "1760"]
[BlackElo "2082"]
[TimeControl "300"]
[EndTime "15:38:32 PDT"]
[Termination "MellowAesthetic won by resignation"]

1. d4 {[%clk 0:04:57.1]} 1... Nf6 {[%clk 0:04:58.6]} 2. Nf3 {[%clk 0:04:56]}
2... g6 {[%clk 0:04:57.9]} 3. Nc3 {[%clk 0:04:54.6]} 3... d5 {[%clk 0:04:56.4]}
4. Bf4 {[%clk 0:04:51.5]} 4... Bg7 {[%clk 0:04:55.7]} 5. Qd2 {[%clk 0:04:50.4]}
5... O-O {[%clk 0:04:54.9]} 6. h4 {[%clk 0:04:49.3]} 6... h5 {[%clk 0:04:50]} 7.
Bh6 {[%clk 0:04:47.4]} 7... c5 {[%clk 0:04:48.1]} 8. Bxg7 {[%clk 0:04:45.5]}
8... Kxg7 {[%clk 0:04:47.4]} 9. e3 {[%clk 0:04:42.7]} 9... Nc6 {[%clk
0:04:45.9]} 10. Bb5 {[%clk 0:04:39.9]} 10... cxd4 {[%clk 0:04:40.4]} 11. exd4
{[%clk 0:04:38.6]} 11... Qb6 {[%clk 0:04:22.7]} 12. O-O-O {[%clk 0:04:33.6]}
12... Bg4 {[%clk 0:04:19.9]} 13. Bxc6 {[%clk 0:04:26.8]} 13... bxc6 {[%clk
0:03:56.8]} 14. Rde1 {[%clk 0:04:25.4]} 14... Bxf3 {[%clk 0:03:49.6]} 15. gxf3
{[%clk 0:04:23.5]} 15... Rab8 {[%clk 0:03:31.6]} 16. b3 {[%clk 0:04:20.6]} 16...
Rfe8 {[%clk 0:03:01]} 17. Re5 {[%clk 0:04:18.7]} 17... Nd7 {[%clk 0:02:47]} 18.
Rg5 {[%clk 0:04:14.4]} 18... e5 {[%clk 0:02:40.9]} 19. dxe5 {[%clk 0:04:02.8]}
19... Nxe5 {[%clk 0:02:36.5]} 20. Qf4 {[%clk 0:03:53.3]} 20... Qb4 {[%clk
0:01:57.8]} 21. Qxb4 {[%clk 0:03:40.8]} 21... Rxb4 {[%clk 0:01:57.7]} 22. Rhg1
{[%clk 0:03:39.5]} 22... Nxf3 {[%clk 0:01:53.8]} 0-1

[Event "Live Chess"]
[Site "Chess.com"]
[Date "2024.06.01"]
[Round "-"]
[White "OliWally08"]
[Black "dmitro74"]
[Result "1-0"]
[WhiteElo "1280"]
[BlackElo "1648"]
[TimeControl "300"]
[EndTime "15:38:38 PDT"]
[Termination "OliWally08 won on time"]

1. e4 {[%clk 0:04:59.1]} 1... e6 {[%clk 0:04:58.5]} 2. d4 {[%clk 0:04:57.1]}
2... d5 {[%clk 0:04:57.8]} 3. e5 {[%clk 0:04:56.4]} 3... c5 {[%clk 0:04:56.9]}
4. c3 {[%clk 0:04:55.8]} 4... Nc6 {[%clk 0:04:55.8]} 5. Nf3 {[%clk 0:04:53.8]}
5... cxd4 {[%clk 0:04:54.2]} 6. cxd4 {[%clk 0:04:48.6]} 6... Bb4+ {[%clk
0:04:49.6]} 7. Nc3 {[%clk 0:04:45.4]} 7... Nge7 {[%clk 0:04:42.2]} 8. Bd3 {[%clk
0:04:37.1]} 8... O-O {[%clk 0:04:22.3]} 9. Bc2 {[%clk 0:04:24.8]} 9... f6 {[%clk
0:04:11.6]} 10. Qd3 {[%clk 0:04:14.4]} 10... Ng6 {[%clk 0:04:09.3]} 11. h4
{[%clk 0:04:13.2]} 11... fxe5 {[%clk 0:04:05.7]} 12. h5 {[%clk 0:04:06.1]} 12...
e4 {[%clk 0:04:04.2]} 13. Qe3 {[%clk 0:03:50.6]} 13... Nf4 {[%clk 0:03:59.6]}
14. Kf1 {[%clk 0:03:26.7]} 14... h6 {[%clk 0:03:53.2]} 15. Nxe4 {[%clk
0:03:18.5]} 15... Be7 {[%clk 0:02:50.1]} 16. g3 {[%clk 0:02:30.6]} 16... e5
{[%clk 0:02:06.7]} 17. gxf4 {[%clk 0:02:17.2]} 17... exf4 {[%clk 0:01:55.8]} 18.
Qd3 {[%clk 0:02:11.7]} 18... Nb4 {[%clk 0:01:48.6]} 19. Nf6+ {[%clk 0:01:59.5]}
19... Rxf6 {[%clk 0:01:36.4]} 20. Qh7+ {[%clk 0:01:54.8]} 20... Kf7 {[%clk
0:01:34.9]} 21. Ne5+ {[%clk 0:01:32.2]} 21... Ke6 {[%clk 0:01:23.8]} 22. Bg6
{[%clk 0:00:42.9]} 22... Qf8 {[%clk 0:01:08.8]} 23. Ng4 {[%clk 0:00:23.1]} 23...
Rf7 {[%clk 0:00:44.4]} 24. Bxf7+ {[%clk 0:00:22]} 24... Qxf7 {[%clk 0:00:43.1]}
25. Bd2 {[%clk 0:00:21.2]} 25... Nc6 {[%clk 0:00:35.2]} 26. Re1+ {[%clk
0:00:20.2]} 26... Kd6 {[%clk 0:00:31.1]} 27. Qc2 {[%clk 0:00:16.9]} 27... Bxg4
{[%clk 0:00:27.6]} 28. Qxc6+ {[%clk 0:00:14.7]} 28... bxc6 {[%clk 0:00:25.8]}
29. Rg1 {[%clk 0:00:08.6]} 29... Bh3+ {[%clk 0:00:19.9]} 30. Ke2 {[%clk
0:00:08.1]} 30... Re8 {[%clk 0:00:17.5]} 31. Kd1 {[%clk 0:00:07.2]} 31... Qxh5+
{[%clk 0:00:13.9]} 32. Kc1 {[%clk 0:00:05.6]} 32... Bg5 {[%clk 0:00:10.2]} 33.
Rxg5 {[%clk 0:00:04.6]} 33... Qxg5 {[%clk 0:00:08.5]} 34. f3 {[%clk 0:00:04.5]}
34... Qg2 {[%clk 0:00:06]} 35. Rd1 {[%clk 0:00:03.2]} 35... Re2 {[%clk
0:00:04.4]} 36. Kc2 {[%clk 0:00:03.1]} 36... Bf5+ {[%clk 0:00:02.5]} 37. Kc3
{[%clk 0:00:02]} 37... c5 {[%clk 0:00:01]} 38. b4 {[%clk 0:00:00.1]} 1-0

[Event "Live Chess"]
[Site "Chess.com"]
[Date "2024.06.01"]
[Round "-"]
[White "booktrunk"]
[Black "koekoekoe"]
[Result "1-0"]
[WhiteElo "1471"]
[BlackElo "1958"]
[TimeControl "300"]
[EndTime "15:38:39 PDT"]
[Termination "booktrunk won by resignation"]

1. d4 {[%clk 0:04:56.3]} 1... d5 {[%clk 0:04:59.9]} 2. Nc3 {[%clk 0:04:52.9]}
2... Nf6 {[%clk 0:04:59.5]} 3. Bf4 {[%clk 0:04:48.6]} 3... Bf5 {[%clk
0:04:58.9]} 4. Nb5 {[%clk 0:04:42.4]} 4... Na6 {[%clk 0:04:57.4]} 5. e3 {[%clk
0:04:25.1]} 5... e6 {[%clk 0:04:55.7]} 6. Nf3 {[%clk 0:04:24]} 6... Bb4+ {[%clk
0:04:39.3]} 7. c3 {[%clk 0:04:17.3]} 7... Ba5 {[%clk 0:04:38.7]} 8. a4 {[%clk
0:04:13.7]} 8... c6 {[%clk 0:04:31]} 9. Nd6+ {[%clk 0:04:09.2]} 9... Kd7 {[%clk
0:04:30.3]} 10. Nxb7 {[%clk 0:04:02.2]} 10... Qb6 {[%clk 0:04:20]} 11. Bxa6
{[%clk 0:03:48.2]} 11... Ne8 {[%clk 0:04:03.7]} 12. Nc5+ {[%clk 0:03:39.6]}
12... Ke7 {[%clk 0:04:02.4]} 13. Rb1 {[%clk 0:03:24]} 13... Nc7 {[%clk
0:03:54.9]} 14. Be2 {[%clk 0:03:01.9]} 14... Bxb1 {[%clk 0:03:51.9]} 15. Qxb1
{[%clk 0:02:58.7]} 15... Bxc3+ {[%clk 0:03:49.3]} 16. Kd1 {[%clk 0:02:53.2]}
16... Qxb2 {[%clk 0:03:45.4]} 17. Qxb2 {[%clk 0:02:51.5]} 17... Bxb2 {[%clk
0:03:45.3]} 18. Bxc7 {[%clk 0:02:43.1]} 18... Ba3 {[%clk 0:03:33.9]} 19. Bd3
{[%clk 0:02:36.8]} 19... Bxc5 {[%clk 0:03:32.3]} 20. dxc5 {[%clk 0:02:35]} 20...
Rac8 {[%clk 0:03:28.5]} 21. Bd6+ {[%clk 0:02:33]} 21... Kd7 {[%clk 0:03:26]} 22.
Ne5+ {[%clk 0:02:31]} 22... Ke8 {[%clk 0:03:24.5]} 23. Ke2 {[%clk 0:02:26.6]}
23... f6 {[%clk 0:03:24]} 24. Nf3 {[%clk 0:02:22.3]} 24... e5 {[%clk 0:03:23.6]}
25. Rb1 {[%clk 0:02:15.5]} 25... e4 {[%clk 0:03:22.5]} 26. Bxe4 {[%clk
0:02:10.2]} 26... dxe4 {[%clk 0:03:22.4]} 27. Nd2 {[%clk 0:02:08.8]} 27... f5
{[%clk 0:03:20.4]} 28. Rb7 {[%clk 0:02:06.9]} 28... g6 {[%clk 0:03:08.1]} 29.
Rxa7 {[%clk 0:02:05]} 29... Kd8 {[%clk 0:02:56.5]} 30. Nc4 {[%clk 0:02:03.1]}
30... Re8 {[%clk 0:02:53.8]} 31. Nb6 {[%clk 0:01:56.7]} 31... Re6 {[%clk
0:02:49.2]} 32. Nxc8 {[%clk 0:01:49.1]} 32... Kxc8 {[%clk 0:02:49.1]} 33. Rxh7
{[%clk 0:01:45.1]} 33... Rf6 {[%clk 0:02:46.6]} 34. Rg7 {[%clk 0:01:41.1]} 34...
f4 {[%clk 0:02:44.4]} 35. exf4 {[%clk 0:01:32.9]} 35... Rxf4 {[%clk 0:02:44.3]}
36. Bxf4 {[%clk 0:01:30.8]} 1-0

[Event "Live Chess"]
[Site "Chess.com"]
[Date "2024.06.01"]
[Round "-"]
[White "Duke_of_Bebington"]
[Black "ACM42"]
[Result "0-1"]
[WhiteElo "1626"]
[BlackElo "2154"]
[TimeControl "300"]
[EndTime "15:38:58 PDT"]
[Termination "ACM42 won by resignation"]

1. e4 {[%clk 0:04:57.9]} 1... e6 {[%clk 0:04:56.6]} 2. d4 {[%clk 0:04:56.2]}
2... d5 {[%clk 0:04:55.6]} 3. Nd2 {[%clk 0:04:54.7]} 3... Nf6 {[%clk 0:04:54.9]}
4. Bd3 {[%clk 0:04:53.8]} 4... c5 {[%clk 0:04:53.4]} 5. c3 {[%clk 0:04:52.6]}
5... Nc6 {[%clk 0:04:51.7]} 6. e5 {[%clk 0:04:51.9]} 6... Nd7 {[%clk 0:04:50.5]}
7. Ne2 {[%clk 0:04:43.4]} 7... f6 {[%clk 0:04:48.3]} 8. Nf4 {[%clk 0:04:38.8]}
8... cxd4 {[%clk 0:04:46.5]} 9. Qh5+ {[%clk 0:04:35.9]} 9... Ke7 {[%clk
0:04:45.2]} 10. Ng6+ {[%clk 0:04:28]} 10... hxg6 {[%clk 0:04:44.1]} 11. exf6+
{[%clk 0:04:27.4]} 11... Nxf6 {[%clk 0:04:42.2]} 12. Qxh8 {[%clk 0:04:26.7]}
12... Kf7 {[%clk 0:04:32.7]} 13. Qh4 {[%clk 0:04:12.4]} 13... Qb6 {[%clk
0:04:23.3]} 14. Nf3 {[%clk 0:03:55.4]} 14... dxc3 {[%clk 0:04:21.2]} 15. bxc3
{[%clk 0:03:54.1]} 15... Bd6 {[%clk 0:03:23.8]} 16. O-O {[%clk 0:03:32.8]} 16...
e5 {[%clk 0:03:21.3]} 17. Qg5 {[%clk 0:03:29.2]} 17... e4 {[%clk 0:03:17.5]} 18.
Be3 {[%clk 0:03:25.8]} 18... Qc7 {[%clk 0:03:10.5]} 19. Nh4 {[%clk 0:03:20.7]}
19... exd3 {[%clk 0:03:02.1]} 20. Qxg6+ {[%clk 0:03:18.4]} 20... Kg8 {[%clk
0:02:52.6]} 21. Nf5 {[%clk 0:02:51.5]} 21... Ne5 {[%clk 0:02:45.9]} 22. Nh6+
{[%clk 0:02:42.6]} 22... Kf8 {[%clk 0:02:23]} 0-1

[Event "Live Chess"]
[Site "Chess.com"]
[Date "2024.06.01"]
[Round "-"]
[White "ShanthamGrarks"]
[Black "TheSmoulderingMaster"]
[Result "1-0"]
[WhiteElo "1817"]
[BlackElo "1727"]
[TimeControl "300"]
[EndTime "15:39:16 PDT"]
[Termination "ShanthamGrarks won by resignation"]

1. d4 {[%clk 0:04:56.7]} 1... Nf6 {[%clk 0:04:58.3]} 2. Nc3 {[%clk 0:04:55.9]}
2... d6 {[%clk 0:04:57.2]} 3. e4 {[%clk 0:04:52.4]} 3... g6 {[%clk 0:04:55.7]}
4. Bd3 {[%clk 0:04:51.8]} 4... Bg7 {[%clk 0:04:54.8]} 5. Nf3 {[%clk 0:04:51.3]}
5... O-O {[%clk 0:04:54]} 6. Bg5 {[%clk 0:04:50.8]} 6... Nbd7 {[%clk 0:04:53.2]}
7. Qd2 {[%clk 0:04:50.2]} 7... e5 {[%clk 0:04:52.1]} 8. d5 {[%clk 0:04:46.7]}
8... Nc5 {[%clk 0:04:51]} 9. h4 {[%clk 0:04:46.1]} 9... Bg4 {[%clk 0:04:48.1]}
10. Nh2 {[%clk 0:04:42.5]} 10... Bd7 {[%clk 0:04:45.1]} 11. h5 {[%clk
0:04:40.1]} 11... Qc8 {[%clk 0:04:42.7]} 12. hxg6 {[%clk 0:04:39]} 12... fxg6
{[%clk 0:04:41.5]} 13. f3 {[%clk 0:04:36.4]} 13... Nh5 {[%clk 0:04:38.8]} 14.
O-O-O {[%clk 0:04:31.3]} 14... c6 {[%clk 0:04:35.1]} 15. dxc6 {[%clk 0:04:28.5]}
15... Bxc6 {[%clk 0:04:33.8]} 16. Bc4+ {[%clk 0:04:27.3]} 16... Kh8 {[%clk
0:04:29.5]} 17. Ng4 {[%clk 0:04:22.8]} 17... Nxe4 {[%clk 0:04:15.1]} 18. Nxe4
{[%clk 0:04:14.2]} 18... Bxe4 {[%clk 0:04:14.1]} 19. fxe4 {[%clk 0:04:07.2]}
19... Qxg4 {[%clk 0:04:11.8]} 20. Be2 {[%clk 0:04:00.9]} 20... Qxe4 {[%clk
0:04:07]} 21. Bxh5 {[%clk 0:03:57.8]} 21... gxh5 {[%clk 0:04:06.2]} 22. Rxh5
{[%clk 0:03:52.9]} 22... Rf5 {[%clk 0:04:04.9]} 23. Rdh1 {[%clk 0:03:48.4]}
23... Raf8 {[%clk 0:03:59.3]} 24. Rxh7+ {[%clk 0:03:46.1]} 24... Kg8 {[%clk
0:03:58.8]} 25. Rxg7+ {[%clk 0:03:28.1]} 25... Kxg7 {[%clk 0:03:56.1]} 26. Bh6+
{[%clk 0:03:27.6]} 26... Kg8 {[%clk 0:03:53.7]} 27. Bxf8 {[%clk 0:03:24]} 27...
Kxf8 {[%clk 0:03:52.9]} 28. Qh6+ {[%clk 0:03:19.4]} 28... Kf7 {[%clk 0:03:50.3]}
29. Qh7+ {[%clk 0:03:14.1]} 29... Ke6 {[%clk 0:03:49.2]} 30. Rh6+ {[%clk
0:03:01.6]} 30... Kd5 {[%clk 0:03:47.9]} 31. Qxb7+ {[%clk 0:02:59.5]} 31... Kd4
{[%clk 0:03:46.1]} 32. c3+ {[%clk 0:02:53.8]} 32... Ke3 {[%clk 0:03:43.9]} 33.
Rh3+ {[%clk 0:02:50.2]} 1-0

[Event "Live Chess"]
[Site "Chess.com"]
[Date "2024.06.01"]
[Round "-"]
[White "OurKnightAtTheOpera"]
[Black "nigelst"]
[Result "1-0"]
[WhiteElo "1998"]
[BlackElo "1698"]
[TimeControl "300"]
[EndTime "15:39:43 PDT"]
[Termination "OurKnightAtTheOpera won by checkmate"]

1. e4 {[%clk 0:04:56.6]} 1... c6 {[%clk 0:04:55.2]} 2. d4 {[%clk 0:04:55.1]}
2... d5 {[%clk 0:04:54]} 3. e5 {[%clk 0:04:54.2]} 3... c5 {[%clk 0:04:52.3]} 4.
dxc5 {[%clk 0:04:52.2]} 4... e6 {[%clk 0:04:50.7]} 5. a3 {[%clk 0:04:50.6]} 5...
Bxc5 {[%clk 0:04:48.7]} 6. b4 {[%clk 0:04:50.1]} 6... Bb6 {[%clk 0:04:47.5]} 7.
Nf3 {[%clk 0:04:47.3]} 7... Ne7 {[%clk 0:04:41.6]} 8. Bb2 {[%clk 0:04:46.7]}
8... Nf5 {[%clk 0:04:40]} 9. Bd3 {[%clk 0:04:43.7]} 9... Nh4 {[%clk 0:04:33.6]}
10. Nbd2 {[%clk 0:04:41.6]} 10... Nxg2+ {[%clk 0:04:30.4]} 11. Kf1 {[%clk
0:04:38.9]} 11... Nf4 {[%clk 0:04:28.7]} 12. Nd4 {[%clk 0:04:23.5]} 12... Nxd3
{[%clk 0:04:21.7]} 13. cxd3 {[%clk 0:04:21.8]} 13... Nc6 {[%clk 0:04:17.2]} 14.
Nb5 {[%clk 0:04:19]} 14... O-O {[%clk 0:04:12.8]} 15. Nf3 {[%clk 0:04:15.8]}
15... Bc7 {[%clk 0:04:05.7]} 16. d4 {[%clk 0:04:12.2]} 16... a6 {[%clk
0:04:02.9]} 17. Nc3 {[%clk 0:04:11.3]} 17... Ne7 {[%clk 0:04:00.7]} 18. Rg1
{[%clk 0:04:03.5]} 18... Nf5 {[%clk 0:03:57.7]} 19. Qd3 {[%clk 0:04:02.7]} 19...
b5 {[%clk 0:03:37.7]} 20. Ne2 {[%clk 0:04:01.6]} 20... Bb6 {[%clk 0:03:34.5]}
21. Ng3 {[%clk 0:03:48.8]} 21... Nxg3+ {[%clk 0:03:28.1]} 22. Rxg3 {[%clk
0:03:47.4]} 22... Bd7 {[%clk 0:03:24]} 23. Ke2 {[%clk 0:03:45.9]} 23... a5
{[%clk 0:03:18.7]} 24. Rag1 {[%clk 0:03:44.3]} 24... g6 {[%clk 0:03:16.1]} 25.
Bc1 {[%clk 0:03:37.5]} 25... axb4 {[%clk 0:03:12.8]} 26. axb4 {[%clk 0:03:24.8]}
26... Ra2+ {[%clk 0:03:10.2]} 27. Kf1 {[%clk 0:03:16.7]} 27... Qc7 {[%clk
0:03:06.5]} 28. Bh6 {[%clk 0:03:10.9]} 28... Rfa8 {[%clk 0:02:59.3]} 29. Qe3
{[%clk 0:03:08.4]} 29... Ra1+ {[%clk 0:02:37.4]} 30. Kg2 {[%clk 0:03:07.4]}
30... Rxg1+ {[%clk 0:02:35.6]} 31. Nxg1 {[%clk 0:03:04.4]} 31... Qd8 {[%clk
0:02:32.8]} 32. Bg5 {[%clk 0:02:55.4]} 32... Qc7 {[%clk 0:02:27.1]} 33. Bf6
{[%clk 0:02:53]} 33... Qc8 {[%clk 0:02:21.8]} 34. Rh3 {[%clk 0:02:49.6]} 34...
h5 {[%clk 0:02:13]} 35. Qh6 {[%clk 0:02:45.8]} 35... Qf8 {[%clk 0:02:03.9]} 36.
Qh8# {[%clk 0:02:45.1]} 1-0

[Event "Live Chess"]
[Site "Chess.com"]
[Date "2024.06.01"]
[Round "-"]
[White "Rusty_Bridges"]
[Black "hapehansen"]
[Result "0-1"]
[WhiteElo "1521"]
[BlackElo "2259"]
[TimeControl "300"]
[EndTime "15:39:46 PDT"]
[Termination "hapehansen won by resignation"]

1. e4 {[%clk 0:04:56.2]} 1... c5 {[%clk 0:04:56.2]} 2. Be2 {[%clk 0:04:54.3]}
2... Nc6 {[%clk 0:04:53.6]} 3. f4 {[%clk 0:04:53.3]} 3... d5 {[%clk 0:04:50.7]}
4. e5 {[%clk 0:04:50.2]} 4... e6 {[%clk 0:04:38.1]} 5. Nf3 {[%clk 0:04:48.8]}
5... Nge7 {[%clk 0:04:35.6]} 6. O-O {[%clk 0:04:45.2]} 6... Nf5 {[%clk
0:04:33.1]} 7. c3 {[%clk 0:04:40.6]} 7... h5 {[%clk 0:04:30.3]} 8. d4 {[%clk
0:04:38.7]} 8... cxd4 {[%clk 0:04:27.1]} 9. cxd4 {[%clk 0:04:37.4]} 9... Qb6
{[%clk 0:04:26.8]} 10. Be3 {[%clk 0:04:09.8]} 10... Nxe3 {[%clk 0:04:23.6]} 11.
Qd2 {[%clk 0:03:59.2]} 11... Nxf1 {[%clk 0:04:21.9]} 12. Kxf1 {[%clk 0:03:58]}
12... Bb4 {[%clk 0:04:16]} 13. Nc3 {[%clk 0:03:55.1]} 13... Bd7 {[%clk 0:04:14]}
14. a3 {[%clk 0:03:53.3]} 14... Be7 {[%clk 0:04:09.2]} 15. b4 {[%clk 0:03:48.8]}
15... Rc8 {[%clk 0:04:02.6]} 16. Rc1 {[%clk 0:03:46.8]} 16... Nxb4 {[%clk
0:03:53]} 17. axb4 {[%clk 0:03:44.7]} 17... Bxb4 {[%clk 0:03:50.9]} 18. Qb2
{[%clk 0:03:39]} 18... Bxc3 {[%clk 0:03:42.9]} 19. Qxb6 {[%clk 0:03:35.7]} 19...
axb6 {[%clk 0:03:39.4]} 0-1